{"text_format":"3","workbook":"xlsx","n_sheets":5,"sheets":["general","SW-R FLHI","SW-L FLHI","Manually_operated","Obrázky"],"not_rendered":{"images":30,"external_links":1,"defined_names":3},"read":"whole","date_system":"1900"}

{"sheet":"general","index":0,"n_rows":137,"n_cols":47,"rows_kept":137,"merged":[[1,22,2,27],[3,23,3,27],[6,10,6,13],[6,17,6,18],[8,10,8,12],[10,3,10,5],[10,10,10,12],[11,18,12,18],[12,16,13,16],[12,17,13,17],[14,2,16,2],[14,7,17,7],[14,17,15,17],[14,18,16,18],[16,1,18,1],[16,17,17,17],[16,19,19,19],[18,2,19,2],[18,18,19,18],[19,8,19,14],[20,1,27,1],[20,19,24,19],[20,20,22,20],[29,24,29,26],[31,2,32,2],[31,16,32,16],[35,24,36,26],[38,1,38,2],[38,24,38,26],[48,17,49,27],[51,17,52,27],[53,17,54,27],[55,12,55,15],[57,12,57,15],[59,12,59,15],[59,17,59,18],[59,19,59,20],[59,21,59,22],[59,23,59,24],[60,17,60,18],[60,19,60,20],[60,21,60,22],[60,23,60,24],[61,14,61,15],[61,17,62,20],[61,21,62,27],[63,21,65,27],[66,21,67,24],[66,26,66,27],[67,26,67,27]]}
[{"$nulls":29},"č.jaz.",{"$f":"VLOOKUP(E5,AD3:AE11,2,FALSE)","v":7},null,"SVYHLEDAT","CZ","EN","DE","PL","FR","NL","EST","FIN","RU",{"$nulls":4},{"$f":"$AG$103","v":"käsitsi"}]
[{"$nulls":22},{"$f":"VLOOKUP(AG12,AG2:AR97,$AE$1+1,FALSE)","v":"Katusekallet järgiv madal tõste (FLL-I)"},{"$nulls":6},"Jazyk","číslo",null,{"$f":"VLOOKUP(AH2,AH2:AR97,$AE$1,FALSE)","v":"Valige keel"},"Zvolit jazyk: ","Select a language:","Wählen Sie eine Sprache","Wybierz język","Sélectionner une langue","Kies een taal:","Valige keel","Valitse kieli:","Выберите язык:",{"$nulls":4},{"$f":"$AG$106","v":"taliga - paremale"}]
[null,"Zvol jazyk:",{"$nulls":6},{"$f":"VLOOKUP(AG3,AG2:AR97,$AE$1+1,FALSE)","v":"Ava laius"},null,null,"mm",{"$nulls":17},"CZ",1,null,{"$f":"VLOOKUP(AH3,AH3:AR97,$AE$1,FALSE)","v":"Ava laius"},"Šířka otvoru","Opening width","Lichte Breite","Szerokość otworu","LARGEUR DE BAIE","Dagmaat breedte","Ava laius","Oviaukon leveys","Ширина проема",{"$nulls":4},{"$f":"$AG$105","v":"taliga - vasakule"}]
[null,"Select a language:",{"$nulls":21},"W max 6000 mm; H max 5000 mm; max. 30 m2",{"$nulls":5},"EN",2,null,{"$f":"VLOOKUP(AH4,AH4:AR98,$AE$1,FALSE)","v":"Ava kõrgus"},"Výška otvoru","Opening height","Lichte Höhe","Wysokość otworu","HAUTEUR DE BAIE","Dagmaat hoogte","Ava kõrgus","Oviaukon korkeus","Высота проема",{"$nulls":4},{"$f":"$AG$109","v":"elektrimootor paremal"}]
[null,"Wählen Sie eine Sprache:",null,null,"EST",{"$nulls":3},{"$f":"VLOOKUP(AG4,AG2:AR97,$AE$1+1,FALSE)","v":"Ava kõrgus"},null,null,"mm",null,null,{"$f":"VLOOKUP(AH100,AH100:AR176,$AE$1,FALSE)","v":"Palun täida värvilised väljad!"},{"$nulls":14},"DE",3,null,{"$f":"VLOOKUP(AH5,AH5:AR97,$AE$1,FALSE)","v":"seestvaade"},"POHLED ZEVNITŘ","INTERIOR VIEW","INNENANSICHT","Widok od środka","VUE INTERIEURE","BINNENAANZICHT","seestvaade","SISÄLTÄPÄIN KUVATTUNA","Вид изнутри",{"$nulls":4},{"$f":"$AG$108","v":"elektrimootor vasakul"}]
[null,"Wybierz język:",{"$nulls":27},"PL",4,null,{"$f":"VLOOKUP(AH6,AH6:AR101,$AE$1,FALSE)","v":"vaade A-A"},"ŘEZ A-A","SECTION A-A","DURCHSCHNITT A-A","Przekrój A-A","COUPE A-A","DOORSNEDE A-A","vaade A-A","LEIKKAUS A-A","Разрез А-А"]
[null,"Sélectionner une langue:",{"$nulls":6},{"$f":"VLOOKUP(AG102,AG8:AR102,$AE$1+1,FALSE)","v":"Avamine"},{"$nulls":20},"FR",5,null,{"$f":"VLOOKUP(AH7,AH7:AR101,$AE$1,FALSE)","v":"VAADE B-B"},"ŘEZ B-B","SECTION B-B","DURCHSCHNITT B-B","Przekrój B-B","COUPE B-B","DOORSNEDE B-B","VAADE B-B","LEIKKAUS B-B","Разрез B-B"]
[null,"Valige keel",{"$nulls":27},"NL",6,null,{"$f":"VLOOKUP(AH8,AH8:AR102,$AE$1,FALSE)","v":"MÄRKUS"},"POZNÁMKA:","NOTE:","ACHTUNG:","Uwaga:","Remarque:","OPMERKING:","MÄRKUS","HUOMAUTUS:","ПРИМЕЧАНИЯ:"]
[null,"Valitse kieli:",{"$nulls":6},{"$f":"AG118","v":"Paneelitüüp"},{"$nulls":20},"EST",7]
[null,"Выберите язык:",{"$nulls":14},{"$f":"VLOOKUP(AG6,AG2:AR97,$AE$1+1,FALSE)","v":"vaade A-A"},{"$nulls":12},"FIN",8]
[{"$nulls":3},{"$f":"VLOOKUP(AG5,AG2:AR97,$AE$1+1,FALSE)","v":"seestvaade"},{"$nulls":4},{"$f":"AG128","v":"Vinkel"},"3°-30°",{"$nulls":19},"RU",9]
[{"$nulls":32},{"$f":"VLOOKUP(AH12,AH12:AR106,$AE$1,FALSE)","v":"Katusekallet järgiv madal tõste (FLL-I)"},"VEDENÍ POD ÚHLEM PRO NÍZKÝ PŘEKLAD (FLL-I)","ROOF LINE FOLLOWING SYSTEM, LOW LIFT SYSTEM (FLL-I)","DACHFOLGESYSTEM NIEDRIGSTURZ BESCHLAG (FLL-I)","PROWADZENIE DLA NISKEGO NADPROŽA POD KĄTEM (FLL-I)","LEVEE REDUITE avec REFOULEMENT TABLIER SOUS RAMPANT TOITURE (FLL-I)","FLL-I","Katusekallet järgiv madal tõste (FLL-I)","KALLISTUKSELLA MATALANOSTO (FLL-I)","СИСТЕМА НАПРАВЛЯЮЩИХ ВДОЛЬ КРЫШИ, НИЗКИЙ НАКЛОННЫЙ ПОДЪЕМ (FLL-I)"]
[{"$nulls":32},{"$f":"VLOOKUP(AH13,AH13:AR107,$AE$1,FALSE)","v":"Trossid sees"},"LANKA UVNITŘ","cables INSIDE","Seile innen der Führungschiene","linki WEWNĄTRZ","Câbles INTERIEURS","verenpakket boven latei","Trossid sees","vaijerit SISÄLLÄ","ТРОСЫ ВНУТРИ "]
[{"$nulls":32},{"$f":"VLOOKUP(AH14,AH14:AR108,$AE$1,FALSE)","v":"HL>600 ja HL<=1200"},"pro HL>600 a HL<=1200","for HL>600 and HL<=1200","pro HL>600 und HL<=1200","pro HL>600 i HL<=1200","pro HL>600 et HL<=1200","van HL>600 tot HL<=1200","HL>600 ja HL<=1200","pro HL>600 ja HL<=1200","при высоте подъема > 600 и <= 1200"]
[{"$nulls":32},{"$f":"VLOOKUP(AH15,AH15:AR109,$AE$1,FALSE)","v":"Paneel 40 mm"},"PANEL 40mm","SECTION THICKNESS 40 mm","Paneel 40 mm","Panel 40 mm","40 mm PANNEAU","PANEEL 40 mm","Paneel 40 mm","Lamelli 40mm","ТОЛЩИНА СЕКЦИИ 40мм "]
[{"$nulls":32},{"$f":"VLOOKUP(AH16,AH16:AR110,$AE$1,FALSE)","v":"Max. W x H 4000x4000"},"Max. W x H 4000x4000","Max. W x H 4000x4000","Max. W x H 4000x4000","Max. W x H 4000x4000","Max. W x H 4000x4000","Max. W x H 4000x4000","Max. W x H 4000x4000","Max. W x H 4000x4000","макс. ШхВ (WxH) 4000x4000"]
[]
[]
[]
[{"$nulls":8},{"$f":"$AG$136","v":"80x40x2 galvaniseeritud toru sisaldub tarnes. Toru kinnitatakse lakke minimaalselt kolmes kohas (2 kinnituskoha ustel alla 10m2)"},{"$nulls":23},{"$f":"VLOOKUP(AH20,AH20:AR114,$AE$1,FALSE)","v":"Paigaldus kiviseinale"},"Montáž na cihlové zdivo","mounting on brickwork","Montage auf Mauerwerk und Ziegel","montaż do muru i cegły","montage sur béton","montage op beton","Paigaldus kiviseinale","asennus tiiliseinän","монтаж на бетон"]
[{"$nulls":8},{"$f":" \"(1) \" & $AG$37","v":"(1) Vajalik vaba ruum "},{"$nulls":15},{"$f":"VLOOKUP(AG20,AG2:AR97,$AE$1+1,FALSE)","v":"Paigaldus kiviseinale"},{"$nulls":7},{"$f":"VLOOKUP(AH21,AH21:AR115,$AE$1,FALSE)","v":"Paigaldus poorbetoonile"},"Montáž na porobeton","mounting on cellular concrete","Montage auf Porenbeton oder Gasbeton","montaż do betonu porowatego","montage sur parpaing creux","montage op gasbeton","Paigaldus poorbetoonile","asennus betoniin","монтаж на газобетон"]
[{"$nulls":32},{"$f":"VLOOKUP(AH22,AH22:AR116,$AE$1,FALSE)","v":"Paigaldus soojustatud seinapaneelile"},"Montáž na opláštění","mounting on insulated cladding","Montage auf ISO-Trapezblechfassade","montaż do płaszcza","montage sur structure métallique  (a fournir par le charpentier)","montage op binnendooscontructie met damwandbeplating","Paigaldus soojustatud seinapaneelile","asennus eristettyyn seinäelementtiin","монтаж на металлокаркас"]
[{"$nulls":8},{"$f":"IF(K7=AU1,\"\",\"(2) \"&$AG$48)","v":"(2) vajalik küljeruum mootori või tali puhul "},{"$nulls":25},"mounting on insulated cladding","Montage auf ISO-Trapezblechfassade"]
[]
[{"$nulls":8},{"$f":"IF(OR(K7=AU1,K7=AU2,K7=AU3),\"\",\"(3) \"&$AG$49)","v":"(3) Kontrolli paigaldusala. Vaata toote dokumentatsiooni mõõtmete kohta"},{"$nulls":23},{"$f":"VLOOKUP(AH25,AH25:AR119,$AE$1,FALSE)","v":"Kliendi poolt tehtavad ettevalmistustööd v.a juhul kui pole kirjalikult teistmoodi kokku lepitud"},"PRÁCE, KTERÉ MUSÍ BÝT PROVEDENY ZÁKAZNÍKEM PŘED MONTÁŽÍ, POKUD NEBYLO DOHODNUTO JINAK","WORK TO BE CARRIED OUT BY CUSTOMER, UNLESS IN ADVANCE OTHERWISE IS AGREED IN WRITING.","VORBEREITUNGEN UND ARBEITEN DIE VOM AUFTRAGGEBER ZU ERBRINGEN SIND, AUßER BEI SCHRIFTLICHER VEREINBARUNG IM VORAUS:","PRACE, KTÓRE MUSZĄ ZOSTAĆ WYKONANE PRZEZ KLIENTA PRZED WYKONANIEM MONTAŻU, O ILE NIE UZGODNIONO INACZEJ.","APPROVISIONNEMENT & TRAVAUX INCOMBANT AU MAITRE D'OUVRAGE  (sauf accord contraire)","VOORZIENINGEN EN WERKZAAMHEDEN DOOR OPDRACHTGEVER TE VERZORGEN, TENZIJ VOORAF SCHRIFTELIJK ANDERS IS OVEREENGEKOMEN ","Kliendi poolt tehtavad ettevalmistustööd v.a juhul kui pole kirjalikult teistmoodi kokku lepitud","ASIAKKAAN TEHTÄVÄT TYÖT, ELLEI ETUKÄTEEN KIRJALLISESTI MUUTOIN SOVITTU ","МАТЕРИАЛЫ И ПРОВЕДЕНИЕ РАБОТ ОБЕСПЕЧИВАЮТСЯ КЛИЕНТОМ,ЕСЛИ ИНОЕ НЕ ОГОВОРЕНО ЗАРАНЕЕ В ПИСЬМЕННОЙ ФОРМЕ"]
[{"$nulls":8},{"$f":"IF(OR(K7=AU1,K7=AU2,K7=AU3),\"\",\"      \"&$AG$50)","v":"      Keskjoon ca 1400-1500 mm põrandast"},{"$nulls":15},{"$f":"VLOOKUP(AG21,AG2:AR97,$AE$1+1,FALSE)","v":"Paigaldus poorbetoonile"},{"$nulls":7},"Ehituslikud:","Konstrukční:","Constructional :","Bauseits:","Konstrukcyjne:","Structure: ","Bouwkundig:","Ehituslikud:","\nRakenteellinen:","Конструктивно:"]
[{"$nulls":32},"Avaettevalmistusraami tarnimine ja paigaldus siinide ja vedrude kinnituseks","Příprava montážních ploch pro vedení vrat a pro pružiny.","Supply and fix mounting frame and mounting surfaces for the rails and the spring packet in case of aerated concrete or sandwichpanels etc.","Ein stählerner Montagerahmen zur Befestigung der vertikalen Laufschienen und des Federpakets bei nicht tragfähigen Flächen wie z.B. Porenbeton, Gasbeton, Isolationspanelen u.s.w..","Przygotowanie powierzchni montażowych dla prowadzenia bramy oraz dla sprężyn.","Préparation de la structure de montage des rails de guidage et des ressorts pour une pose sur panneaux isolants","Een stalen montageframe voor de bevestiging van de verticale looprails en het verenpakket bij niet dragende montagevlakken, zoals gasbeton, isolatiepanelen, sandwichpanelen enz.","Avaettevalmistusraami tarnimine ja paigaldus siinide ja vedrude kinnituseks","Toimittaa ja asentaa asennuskehyksen ja asennuspinnat kiskoille ja jousipaketille tapauksessa jossa kevytbetooni tai sandwich-paneeli jne.","Стальная монтажная рама для установки вертикальных направляющих и пружин в случае не несущих монтажных поверхностей, таких как: газобетон, изоляционные панели, сэндвич-панели и т.д."]
[{"$nulls":8},{"$f":"IF(OR(K7=AU1,K7=AU2,K7=AU3),\"\",\"(4) \"&$AG$51)","v":"(4) Elektripistiku parameetrid leiate toote dokumentatsioonist."},{"$nulls":23},"Paigaldusruum ülalpool siini max. 1m","Montáž vodorovného vedení může být max. 1 metr od pevné konstrukce.","Mounting possibilities for the horizontal rails up to 1 meter above the rails must be provided.","Befestigungsmöglichkeit für die Zwischen- und Endaufhängung der horizontalen Laufschienen bis zu max. 1 m über diesen Laufschienen.","Montaż prowadzenia poziomego można wykonać w oddaleniu maks. 1 metra od konstrukcji stałej.","Lorsque les possibilités de montage des rails horizontaux dépassent ","Bevestigingsmogelijkheid voor de tussen- en eindophanging van de horizontale looprails tot max. 1m boven deze looprails.","Paigaldusruum ülalpool siini max. 1m","Asennus mahdollisuudet vaakakiskoille enintään 1 metrin korkeudella kiskoista pitää olla mahdollista.","Способы крепления для горизонтальных направляющих максимум до 1м над данными направляющими."]
[{"$nulls":32},"Piisav paigaldusruum vastavalt lisatud joonisele","Nezbytné montážní plochy a volný prostor dle nákresu.","Necessary mounting surface and free room as shown.","Benötigte Montageflächen und Freiräume gemäß Zeichnung.","Niezbędne powierzchnie montażowe oraz wolna przestrzeń wg rysunku.","Adapter la structure et l' espace disponible selon nos plans de réservations ci-contre","Benodigde montagevlakken en vrije ruimtes, volgens tekening.","Piisav paigaldusruum vastavalt lisatud joonisele","Tarvittava kiinnityspinta ja vapaa tilaa kuvan mukaisesti.","Необходимые монтажные поверхности и свободное пространство в соответствии с чертежом"]
[{"$nulls":17}," ",{"$nulls":6},{"$f":"VLOOKUP($AG$22,$AG$2:$AR$97,$AE$1+1,FALSE)","v":"Paigaldus soojustatud seinapaneelile"},{"$nulls":7},"Elektriliselt avatavate uste jaoks","Elektrická příprava (pro elektricky ovládaná sekční vrata): ","Electrical supply required to be :","Elektrisch (bei elektrisch bedienten Toren):","Przygotowanie elektryczne (dla elektrycznie sterowanej bramy segmentowej) :","Alimentation electrique  (pour porte motorisée) :","Elektrisch: (bij elektrisch bediende deuren)","Elektriliselt avatavate uste jaoks","Sähkönsyöttö tarvittu:","Электрика (для ворот с электрическим управлением):"]
[{"$nulls":32},"Toite vedu ajamini - 400V/230V, 3 faasi","Zásuvka CEE 16 A, 5P, 400 V = zásuvka s nulovým a zemnícím vodičem","400V/230V 3 phase neutral and earth terminating, provided by euro plug socket.","Stromzufuhr 400V/230V mittels Eurosteckdose, 3 Phasen+0+PE max.1 meter vom Schaltkasten.","Gniazdo CEE 16 A, 5P, 400 V = gniazdo z przewodnikiem zerowym i uziemiającym","400V triphase T+N avec prise de raccordement CEE 16 A","Voeding  400V/230V door middel van eurostopcontact, 3 fase+0+PE max. ","Toite vedu ajamini - 400V/230V, 3 faasi","400V / 230V 3 vaihe+neutraali ja maadoitus tarjotuna Euro pistorasiasta.","Питание 400V/230V посредством заземленной евророзетки, 3 фазы+0+РЕ "]
[{"$nulls":32},"Kontrolleri jaoks piisava paigaldusruumi tagamine 250x400 mm","Zajistit vhodnou montážní plochu pro řídící jednotku motoru 250 x 400 mm","Provide suitable mounting surface for control panel, dimensions 250 x 400 mm","Montagefläche für Schaltkasten, Abmessungen 250 x400 mm","Zapewnić odpowiednią powierzchnię montażową dla jednostki sterującej silnika 250x400","Assurer une surface de montage adéquate pour le coffret de commande du moteur L.250 x H.400 mm","Montagevlak t.b.v. schakelkast, afmetingen 250 x 400 mm","Kontrolleri jaoks piisava paigaldusruumi tagamine 250x400 mm","Tarjoa sopivan kiinnityspinnan  ohjauspaneelia varten ,mitat 250 x 400 mm","необходимо обеспечить монтажную поверхность для панели управления, размеры 250х400 мм"]
[]
[null,null,{"$f":"IF(K7=AG103,125,IF(AND(K7=AG104,R7=AG108),375,IF(AND(K7=AG105,R7=AG108),375,125)))","v":125}]
[{"$nulls":32},{"$f":"VLOOKUP(AH35,AH35:AR129,$AE$1,FALSE)","v":"Vajalik paigaldusruum"},"NEZBYTNÁ MONTÁŽNÍ PLOCHA","NECESSARY MOUNTING SURFACE","BENÖTIGTE MONTAGEFLÄCHEN","NIEZBĘDNA POWIERZCHNIA MONTAŻOWA","SURFACE NECESSAIRE DE MONTAGE","BENODIGDE MONTAGEVLAKKEN","Vajalik paigaldusruum","TARVITTAVA KIINNITYSPINTA","необходимая монтажная поверхность"]
[{"$nulls":32},{"$f":"VLOOKUP(AH36,AH36:AR130,$AE$1,FALSE)","v":"Lisaplaadid nõrgale pinnale"},"DODATEČNÉ MONTÁŽNÍ PLOCHY PRO KONZOLY","EXTRA PLANES AT WEAK SURFACES","MONTAGEFLÄCHE FÜR DEN MOTOR","Dodatkowych obszarach montażu konsoli","FACILITÉ DE MONTAGE ADDITIONNEL POUR CONSOLE","EXTRA VLAKKEN BIJ ZWAKKE ONDERGROND","Lisaplaadid nõrgale pinnale","LISÄ ASENNUSTILA ","металлокаркас из стальной профильной трубы"]
[{"$nulls":11},{"$f":"VLOOKUP(AG41,AG2:AR97,$AE$1+1,FALSE)","v":"pinna langus"},{"$nulls":20},{"$f":"VLOOKUP(AH37,AH37:AR131,$AE$1,FALSE)","v":"Vajalik vaba ruum "},"NEZBYTNÝ VOLNÝ PROSTOR","NECESSARY FREE ROOM","BENÖTIGTER FREIRAUM","niezbędne miejsce","ESPACE LIBRE NECESSAIRE","BENODIGDE VRIJE RUIMTE","Vajalik vaba ruum ","TARVITTAVA VAPAA TILA","необходимое свободное пространство"]
[{"$nulls":32},{"$f":"VLOOKUP(AH38,AH38:AR132,$AE$1,FALSE)","v":"Lisa vaba ruum mootorile/ketile"},"VOLNÝ PROSTOR PRO MOTOR/ŘETĚZ.PŘEVOD","EXTRA FREE ROOM FOR MOTOR/CHAIN","EXTRA FREIRAUM FÜR MOTOR/KETTE","Wolnego miejsca na silnik, napęd łańcuchowy","ESPACE LIBRE POUR MOTEUR / CHAINE DE LEVAGE.","EXTRA VRIJE RUIMTE BIJ MOTOR/KETTING","Lisa vaba ruum mootorile/ketile","LISÄTILA MOOTORIA/KETJUA VARTEN","дополнительное свободное пространство для двигателя/подъемной цепи"]
[]
[]
[{"$nulls":32},{"$f":"VLOOKUP(AH41,AH41:AR135,$AE$1,FALSE)","v":"pinna langus"},"sklon podlahy","fall of the floor","Bodenneigung","nachylenie podłogi","réservations seuil béton","vloer met waterkering","pinna langus","kaltevuus","пол с водоотводом"]
[{"$nulls":32},{"$f":"VLOOKUP(AH42,AH42:AR136,$AE$1,FALSE)","v":"väljaspool"},"směrem ven","outside","nach aussen","w kierunku na zewnątrz",{"$f":"\"\"","v":""},"buitenzijde","väljaspool","ulkopuoli"]
[{"$nulls":32},{"$f":"VLOOKUP(AH43,AH43:AR137,$AE$1,FALSE)","v":"langus 3%"},"sklon 3%","fall 3%","Gefälle 3%","nachylenie 3%","PENTE 3%","afschot 3%","langus 3%","kaltevuus 3%","наклон 3%"]
[{"$nulls":32},{"$f":"VLOOKUP(AH44,AH44:AR138,$AE$1,FALSE)","v":"Sisemine tasand"},"směrem ven","internal level","Wasserschenkel","w kierunku na zewnątrz","réservations seuil béton","niveau binnen","Sisemine tasand","sisäinen taso"]
[{"$nulls":17},{"$f":"VLOOKUP(AG35,AG2:AR97,$AE$1+1,FALSE)","v":"Vajalik paigaldusruum"},{"$nulls":5},{"$f":"VLOOKUP(AG37,AG4:AR98,$AE$1+1,FALSE)","v":"Vajalik vaba ruum "},{"$nulls":8},{"$f":"VLOOKUP(AH45,AH45:AR139,$AE$1,FALSE)","v":"põrand koos tõstetud sisetasandiga"},"sklon podlahy","floor with raised","Boden mit","nachylenie podłogi",{"$f":"\"\"","v":""},"vloer met  ","põrand koos tõstetud sisetasandiga","lattia nostetulla","пол с наклоном 3%"]
[]
[{"$nulls":17},{"$f":"VLOOKUP(AG36,AG4:AR98,$AE$1+1,FALSE)","v":"Lisaplaadid nõrgale pinnale"}]
[null,{"$f":"VLOOKUP(AG8,AG2:AR97,$AE$1+1,FALSE)","v":"MÄRKUS"},{"$nulls":30},{"$f":"VLOOKUP(AH48,AH48:AR142,$AE$1,FALSE)","v":"vajalik küljeruum mootori või tali puhul "},"nezbytný boční prostor pro motor nebo řetězový pohon","necessary side room for electrical- or hauling chain operation","Benötigter Freiraum bei Elektro- oder Haspelkettenbedienung","niezbędna przestrzeń boczna dla silnika lub napędu łańcuchowego","écoinçon minimum requis pour le moteur ou treuil a chaîne ","benodigde vrije ruimte voor elektrische- of ketting bediening ","vajalik küljeruum mootori või tali puhul ","tarvittava tila mootori- tai ketjunostolle ","необходимое боковое пространство для электропривода или цепного редуктора"]
[null,{"$f":"VLOOKUP(AG54,AG2:AR97,$AE$1+1,FALSE)","v":"Kõik paigalduspinnad peavad olema ühes tasapinnas ja loodis"},{"$nulls":15},{"$f":"VLOOKUP(AG25,AG2:AR97,$AE$1+1,FALSE)","v":"Kliendi poolt tehtavad ettevalmistustööd v.a juhul kui pole kirjalikult teistmoodi kokku lepitud"},{"$nulls":14},{"$f":"VLOOKUP(AH49,AH49:AR141,$AE$1,FALSE)","v":"Kontrolli paigaldusala. Vaata toote dokumentatsiooni mõõtmete kohta"},"montážní plocha pro řídící jednotku. Rozměry najdete v dokumentaci ŘJ.","Mounting surface for control panel. See product documentation for dimensions","Montagefläche für Antriebsteuerung. Siehe Produktdokumentation für Abmessungen","Powierzchnia montażowa dla jednostki sterującej. Wymiary można znaleźć w dokumentacji produktu","Surface de montage pour le Coffret de commande","Montagevlak t.b.v. Zie productdocumentatie voor afmetingen","Kontrolli paigaldusala. Vaata toote dokumentatsiooni mõõtmete kohta","Kiinnityspinta ohjauspaneelia varten. Katso mitat tuoteasiakirjoista","монтажная поверхность для блока управления. Размеры см. в документации на изделие"]
[null,{"$f":"VLOOKUP(AG55,AG2:AR97,$AE$1+1,FALSE)","v":"Ava peab olema täpne ja nelinurkne"},{"$nulls":30},{"$f":"VLOOKUP(AH50,AH50:AR144,$AE$1,FALSE)","v":"Keskjoon ca 1400-1500 mm põrandast"},"osa cca 1.400 až 1.500 mm od podlahy","center line ca 1.400 -1.500 mm above floor","Achse ca. 1.400 bis 1.500 mm vom Boden","oś ok. 1.400 do 1.500 mm od podłogi","axe d'env. 1 400 a 1 500 mm a compter ","hartlijn ca. 1.400 - 1.500 boven de vloer","Keskjoon ca 1400-1500 mm põrandast","keskiviiva ca 1,400 -1,500 mm: n korkeudella lattiasta","осевая линия примерно 1.400-1.500 мм над уровнем пола"]
[null,{"$f":"VLOOKUP(AG56,AG2:AR97,$AE$1+1,FALSE)","v":"Põrandapind peab olema sile ja horisontaalne"},{"$nulls":15},{"$f":"VLOOKUP(AG26,AG2:AR97,$AE$1+1,FALSE)","v":"Ehituslikud:"},{"$nulls":14},{"$f":"VLOOKUP(AH51,AH51:AR143,$AE$1,FALSE)","v":"Elektripistiku parameetrid leiate toote dokumentatsioonist."},"Zásuvka, parametry najdete v dokumentaci produktu","Electric outlet parameters can be found in the product documentation.","Die Parameter der Steckdosen sind in der Produktdokumentation zu finden.","Parametry gniazdka elektrycznego można znaleźć w dokumentacji produktu.","Les paramètres des prises électriques sont indiqués dans la documentation du produit.","De parameters van het stopcontact zijn te vinden in de productdocumentatie.","Elektripistiku parameetrid leiate toote dokumentatsioonist.","Pistorasian parametrit löytyvät tuoteasiakirjoista.","Параметры электрической розетки приведены в документации на изделие.","Параметры электрической розетки приведены в документации на изделие."]
[null,{"$f":"AG137","v":"puhaskõrgust saab vähendada ukselehe siseküljele paigaldatud tarvitute abil (käepide, tugevdustala, eriti madal künnis, jne)"},{"$nulls":15},{"$f":"VLOOKUP(AG27,AG2:AR97,$AE$1+1,FALSE)","v":"Avaettevalmistusraami tarnimine ja paigaldus siinide ja vedrude kinnituseks"}]
[null,{"$f":"AG59","v":"Mõõdud mm"}]
[null,"W =",{"$f":"VLOOKUP(AG60,AG2:AR97,$AE$1+1,FALSE)","v":"Ava laius"},null,null,{"$f":"IF(K3=\"\",\"W \",\"W = \" & K3)","v":"W "},{"$f":"IF(K7=\"\",AG102 & \"\",AG102& \" : \" & \"  \" &K7)","v":"Avamine"},{"$nulls":5},{"$f":"VLOOKUP(AG82,AG3:AR96,$AE$1+1,FALSE)","v":"Vaba ruum sillusest  laeni"},{"$nulls":4},{"$f":"VLOOKUP(AG28,AG3:AR97,$AE$1+1,FALSE)","v":"Paigaldusruum ülalpool siini max. 1m"},{"$nulls":14},{"$f":"VLOOKUP(AH54,AH54:AR148,$AE$1,FALSE)","v":"Kõik paigalduspinnad peavad olema ühes tasapinnas ja loodis"},"Stěna nad překladem, stěny vedle otvoru a plochy pro montáž konzol musí být rovné a v jedné rovině.","The rear face of the lintel and the door jambs, as well as the surface for the spring packet must be levelled and in line.","Die hinteren Seiten der Sturze und Pfeiler, sowie die Montagefläche für das Federpaket müssen eben und auf einer Linie liegen.","Ściany tłumaczenia, obok ściany otworu oraz wszystkie obszary i zbiórki musi być kolor.","La surface d'appui pour la pose de la porte sectionnelle doit etre dans le meme plan et verticale.","De achterkanten van de penanten, de latei en de montagevlakken van het verenpakket dienen vlak en in één lijn te liggen.","Kõik paigalduspinnad peavad olema ühes tasapinnas ja loodis","Ylä ja sivukarmien sekä jousipaketin asennuspinnan pitää olla tasaisia ja samassa linjassa","Монтажная поверхность должна быть ровной и распологаться в одной вертикальной плоскости"]
[null,"H =",{"$f":"VLOOKUP(AG61,AG3:AR97,$AE$1+1,FALSE)","v":"Ava kõrgus"},null,null,{"$f":"IF(K5=\"\",\"H \",\"H = \" &K5)","v":"H "},{"$f":"IF(K4=\"\",\"L/R\",\"L\")","v":"L/R"},{"$f":"IF(K4=\"\",$AG$132,$AG$67)","v":"Mootori pool "},{"$nulls":3},{"$f":"IF(K4=\"\",\"min. 450\",F58)","v":"min. 450"},"F",null,"min.",{"$f":"IF(K9=AG119,230,270)","v":270},{"$nulls":16},{"$f":"VLOOKUP(AH55,AH55:AR149,$AE$1,FALSE)","v":"Ava peab olema täpne ja nelinurkne"},"Otvor musí být svislý a obdélníkový.","Furthermore the opening must be plumb and square.","Im übrigen müssen die lichten Masse eben und rechtwinklig sein.","Otwór musi być pionowy i prostokątny.","L'ouverture de la baie doit etre parfaitement de niveau et d'equerre.","Tevens moet de dagmaat vlak en haaks zijn.","Ava peab olema täpne ja nelinurkne","Lisäksi oviaukon pitää olla pysty- ja vaakasuora sekä nelikulmainen.","Проем также должен быть ровным и прямоугольным."]
[null,"F = ",{"$f":"VLOOKUP(AG82,AG2:AR95,$AE$1+1,FALSE)","v":"Vaba ruum sillusest  laeni"},null,null,{"$f":"IF(K5=\"\",\"F \",\"F = \" &P55)","v":"F "},{"$f":"IF(K4=\"\",\"L/R\",\"R\")","v":"L/R"},{"$f":"IF(K4=\"\",$AG$133,$AG$66)","v":"Teine pool "},{"$nulls":3},{"$f":"IF(K4=\"\",\"min. 180\",F59)","v":"min. 180"},{"$f":"AG65","v":"Raami kõrgus ava kohal"},{"$nulls":4},{"$f":"VLOOKUP(AG29,AG2:AR97,$AE$1+1,FALSE)","v":"Piisav paigaldusruum vastavalt lisatud joonisele"},{"$nulls":14},{"$f":"VLOOKUP(AH56,AH56:AR150,$AE$1,FALSE)","v":"Põrandapind peab olema sile ja horisontaalne"},"Podlaha musí být rovná a vodorovná.","Floor area must be flat and horizontal.","Der Fussboden muss glatt und waagerecht sein.","Podłoga musi być równa i pozioma.","Le sol doit etre parfaitement horizontal et plan.","De afgewerkte vloer dient vlak en waterpas te liggen.","Põrandapind peab olema sile ja horisontaalne","Lattian pitää olla tasainen ja vaakasuora.","Обработанный пол должен быть ровным и без склонов."]
[null,"A =",{"$f":"AG83","v":"Kesktelg"},null,null,{"$f":"IF(K5=\"\",\"A\",\"A = \" &P59)","v":"A"},{"$f":"IF(G55=\"\",\"\",\"D\")","v":"D"},{"$f":"IF(G55=\"\",\"\",AG79)","v":"Sügavus"},null,null,{"$f":"IF(K4=AG101,\"H + 1100\",\"H  + 1100\")","v":"H + 1100"},{"$f":"IF(OR(K5=\"\",K7=\"\"),\"\",K5+1100)","v":""},"E",null,"H + F",{"$f":"IF(OR(K5=\"\",P55=\"\"),\"\",K5+P55)","v":""},null,{"$f":"VLOOKUP(AG30,AG2:AR97,$AE$1+1,FALSE)","v":"Elektriliselt avatavate uste jaoks"}]
[null,"L = ",{"$f":"VLOOKUP(AG67,AG4:AR97,$AE$1+1,FALSE)","v":"Vaba küljeruum paremal"},null,null,{"$f":"IF(OR(K5=\"\",K7=\"\"),\"L\",\"L = \" &Obrázky!$Z$16)","v":"L"},{"$f":"IF(OR(L57<=3000,K7=\"\"),AG80,\"\")","v":"Kinnituskoht, kui "},null,{"$f":"IF(OR(L57<=3000,K5=\"\"),\"D<=3000\",\"\")","v":"D<=3000"},{"$nulls":3},{"$f":"AG83","v":"Kesktelg"},{"$nulls":4},{"$f":"VLOOKUP(AH51,AH51:AR143,$AE$1,FALSE)","v":"Elektripistiku parameetrid leiate toote dokumentatsioonist."}]
[null,"R = ",{"$f":"VLOOKUP(AG66,AG5:AR98,$AE$1+1,FALSE)","v":"Vaba küljeruum vasakul"},null,null,{"$f":"IF(OR(K5=\"\",K7=\"\"),\"R\",\"R = \"&Obrázky!Z17)","v":"R"},{"$f":"IF(OR(L57<=3000,K7=\"\"),\"X\",\"\")","v":"X"},{"$f":"IF(OR(L57<=3000,K5=\"\"),VLOOKUP(AG71,AG5:AR98,$AE$1+1,FALSE),\"\")","v":"1.kinnituskoht"},null,null,{"$f":"IF(K5=\"\",\"H\",IF(L57<=3000,\"H \",\"\"))","v":"H"},{"$f":"IF(L57<=3000,IF(OR(K5=\"\"),\"\",K5),\"\")","v":""},"A",null,null,100,{"$nulls":16},{"$f":"VLOOKUP(AH59,AH59:AR153,$AE$1,FALSE)","v":"Mõõdud mm"},"Rozměry jsou v mm","UNITS in mm","MASSE in mm","Wymiary podane w mm","MESURES en mm","MATEN in mm","Mõõdud mm","YKSIKKÖ mm","размеры в мм:"]
[null,"D = ",{"$f":"VLOOKUP(AG68,AG8:AR99,$AE$1+1,FALSE)","v":"Sügavus"},null,null,{"$f":"IF(OR($K$5=0,$K$7=\"\"),\"D\", \"D = \" & $L$57)","v":"D"},{"$f":"IF(K5=\"\",AG80,IF(AND(L57>3000,L57<=4500),AG80,\"\"))","v":"Kinnituskoht, kui "},null,{"$f":"IF(K5=\"\",\"3000<D<=4500\",IF(AND(L57>3000,L57<=4500),\"3000<D<=4500\",\"\"))","v":"3000<D<=4500"},{"$nulls":3},{"$f":"AG70","v":"Nelikantoru kinnituskoht"},{"$nulls":4},{"$f":"VLOOKUP(AG86,AG2:AR97,$AE$1+1,FALSE)","v":"Joonestatud:"},null,{"$f":"VLOOKUP(AG87,AG2:AR97,$AE$1+1,FALSE)","v":"Kontrollitud:"},null,{"$f":"VLOOKUP(AG88,AG2:AR97,$AE$1+1,FALSE)","v":"Kinnitatud:"},null,{"$f":"VLOOKUP(AG89,AG2:AR97,$AE$1+1,FALSE)","v":"Faili nimi:"},null,{"$f":"VLOOKUP(AG90,AG2:AR97,$AE$1+1,FALSE)","v":"Kuupäev:"},{"$f":"VLOOKUP(AG91,AG2:AR97,$AE$1+1,FALSE)","v":"Mõõtkava:"},{"$f":"VLOOKUP(AG92,AG2:AR97,$AE$1+1,FALSE)","v":"Formaat:"},{"$nulls":4},"Ava laius","Šířka otvoru","Opening width","Lichte Breite","Szerokość otworu","LARGEUR DE BAIE","Dagmaat breedte","Ava laius","Oviaukon leveys","ширина проема"]
[null,"X =",{"$f":"VLOOKUP(AG71,AG11:AR101,$AE$1+1,FALSE)","v":"1.kinnituskoht"},null,null,{"$f":"Obrázky!Z19","v":"X"},{"$f":"IF(K7=\"\",\"X\",IF(AND(L57>3000,L57<=4500),\"X\",\"\"))","v":"X"},{"$f":"IF(K5=\"\",VLOOKUP(AG71,AG5:AR98,$AE$1+1,FALSE),IF(AND(L57>3000,L57<=4500),VLOOKUP(AG71,AG5:AR98,$AE$1+1,FALSE),\"\"))","v":"1.kinnituskoht"},null,null,{"$f":"IF(K5=\"\",\"H\",IF(AND(L57>3000,L57<=4500),\"H\",\"\"))","v":"H"},{"$f":"IF(OR(K5=\"\",K7=\"\"),\"\",IF(AND(L57>3000,L57<=4500),IF(OR(K5=\"\"),\"\",K5),\"\"))","v":""},"S",null,"H+1020",{"$f":"IF(K5=\"\",\"\",K5+1020)","v":""},null,"T.Horáček",null,"T.Horáček",null,"26.062024",null,"STP",null,"2024-04-03","-","A3",{"$nulls":4},"Ava kõrgus","Výška otvoru","Opening height","Lichte Höhe","Wysokość otworu","HAUTEUR DE BAIE","Dagmaat hoogte","Ava kõrgus","Oviaukon korkeus","высота проема"]
[null,"Y = ",{"$f":"VLOOKUP(AG72,AG12:AR102,$AE$1+1,FALSE)","v":"2.kinnituskoht"},null,null,{"$f":"Obrázky!Z20","v":"Y"},{"$f":"IF(K5=\"\",\"Y\",IF(AND(L57>3000,L57<=4500),\"Y\",\"\"))","v":"Y"},{"$f":"IF(K5=\"\",VLOOKUP(AG72,AG5:AR98,$AE$1+1,FALSE),IF(AND(L57>3000,L57<=4500),VLOOKUP(AG72,AG5:AR98,$AE$1+1,FALSE),\"\"))","v":"2.kinnituskoht"},null,null,{"$f":"IF(K5=\"\",\"1/2 X\",IF(AND(L57>3000,L57<=4500),\"1/2 X\",\"\"))","v":"1/2 X"},{"$f":"IF(OR(K5=\"\"),\"\",IF(AND(L57>3000,L57<=4500),IF(OR(K5=\"\"),\"\",ROUND(L61/2,0)),\"\"))","v":""},{"$nulls":5},"http://door-documents.com/en/indy-installation-drawing-fsl",{"$nulls":3},{"$f":"VLOOKUP(AG93,AG2:AR97,$AE$1+1,FALSE)","v":"Paigaldusjoonis"},{"$nulls":10},"Kõrge tõste","High lift","High lift","Höhe der Führung","Wyciąg wysoki","LEEVE HAUTE","High lift","Kõrge tõste","korkeanosto","Высокий подъем"]
[null,"Y = ",{"$f":"VLOOKUP(AG73,AG12:AR102,$AE$1+1,FALSE)","v":"3. kinnituskohta"},null,null,{"$f":"Obrázky!Z21","v":"Y2"},{"$f":"IF(K5=\"\",VLOOKUP(AG80,AG3:AR96,$AE$1+1,FALSE),IF(L57>4500,VLOOKUP(AG80,AG3:AR96,$AE$1+1,FALSE),\"\"))","v":"Kinnituskoht, kui "},null,{"$f":"IF(K5=\"\",\"D>4500\",IF(L57>4500,\"D>4500\",\"\"))","v":"D>4500"},{"$nulls":23},"Sisemine kõrgus","Výška stropu","Interior height","Höhe Innenraum","Wysokość stropu","HAUTEUR SOUS PLAFOND","Hoogte binnenruimte","Sisemine kõrgus","sisäkorkeus","высота внутри помещения до перекрытий"]
[null,"S =",{"$f":"AG70","v":"Nelikantoru kinnituskoht"},null,null,{"$f":"\"S = \" & P61","v":"S = "},{"$f":"IF(K7=\"\",\"X\",IF(L57>4500,\"X\",\"\"))","v":"X"},{"$f":"IF(L57>4500,VLOOKUP(AG71,AG8:AR101,$AE$1+1,FALSE),\"\")","v":"1.kinnituskoht"},null,{"$f":"IF($K$7=$AG$102,$L$57,$L$60)","v":0},{"$f":"IF(K7=\"\",\"X\",IF(L57>4500,\"H\",\"\"))","v":"X"},{"$f":"IF(K5=\"\",\"\",IF(L57>4500,K5,\"\"))","v":""},{"$nulls":9},{"$f":"AG12","v":"Katusekallet järgiv madal tõste (FLL-I)"},{"$nulls":10},"Vaba ruum laeni","Volný prostor nad překladem","Free room above lintel","Freiraum über Sturz","Wolna przestrzeń nad nadprożem","RETOMBEE DE LINTEAU DISPONIBLE","Vrije ruimte boven latei","Vaba ruum laeni","vapaa ylätila","свободное пространство над проемом"]
[{"$nulls":6},{"$f":"IF(K7=\"\",\"Y\",IF(L57>4500,\"Y\",\"\"))","v":"Y"},{"$f":"IF(L57>4500,VLOOKUP(AG72,AG9:AR102,$AE$1+1,FALSE),\"\")","v":"2.kinnituskoht"},null,{"$f":"IF($K$7=$AG$102,$L$57,$L$60)","v":0},{"$f":"IF(K7=\"\",\"X\",IF(L57>4500,\"(X/3)*2\",\"\"))","v":"X"},{"$f":"IF(K5=\"\",\"\",IF(L57>4500,ROUND((L64/3)*2,0),\"\"))","v":""},{"$nulls":20},"Raami kõrgus ava kohal","Výška montážní plochy nad otvorem","Height of frame above opening","Höhe über Montagefläche Loch","Wysokość powyżej otworu montażowego powierzchni","HAUTEUR AU-DESSUS DU TROU DE SURFACE DE MONTAGE","Hoogte frame boven latei","Raami kõrgus ava kohal","Rungon korkeus oviaukon yläpuolella.","высота конструкции ворот над проемом"]
[{"$nulls":6},{"$f":"IF(K7=\"\",\"Y2\",IF(L57>4500,\"Y2\",\"\"))","v":"Y2"},{"$f":"IF(L57>4500,VLOOKUP(AG73,AG10:AR103,$AE$1+1,FALSE),\"\")","v":"3. kinnituskohta"},null,{"$f":"IF($K$7=$AG$102,$L$57,$L$60)","v":0},{"$f":"IF(K7=\"\",\"X\",IF(K7=\"\",\"X\",IF(L57>4500,\"X/3\",\"\")))","v":"X"},{"$f":"IF(K5=\"\",\"\",IF(L57>4500,ROUND(L64/3,0),\"\"))","v":""},{"$nulls":20},"Vaba küljeruum vasakul","Volný prostor vlevo","Free side room left","Freiraum LINKS","Wolna przestrzeń W LEWO","ECOINCON GAUCHE","Vrije zijruimte links","Vaba küljeruum vasakul","vapaa tila vasemalla","свободное боковое пространство СЛЕВА"]
[{"$nulls":21},{"$f":"AG12","v":"Katusekallet järgiv madal tõste (FLL-I)"},{"$nulls":3},{"$f":"VLOOKUP(AG96,AG2:AR97,$AE$1+1,FALSE)","v":"Kood:"},{"$f":"VLOOKUP(AG97,AG2:AR97,$AE$1+1,FALSE)","v":"Versioon:"},{"$nulls":5},"Vaba küljeruum paremal","Volný prostor vravo","Free side room right","Freiraum RECHTS","Wolna przestrzeń W PRAWO","ECOINCON DROITE","Vrije zijruimte rechts","Vaba küljeruum paremal","vapaa tila oikealla","свободное боковое пространство СПРАВА"]
[{"$nulls":25},"055-2",2426,{"$nulls":5},"Sügavus","Hloubka vedení","Back room","Einbautiefe","Głębokość prowadzenia poziomego","REFOULEMENT HORS-TOUT","Inbouwdiepte","Sügavus","tila takana","монтажная глубина"]
[{"$nulls":32},"Katusekalle","Úhel sklonu střechy","Gradient of the roof","Deckenwinkel","Głębokość prowadzenia poziomego","PENTE DU TOIT","Hellingshoek van het dak","Katusekalle","Katon kaltevuus","уклон крыши"]
[{"$nulls":32},"Nelikantoru kinnituskoht","Kotvící body pro jekl","Hanging point for sleeves","Aufhängepunkt für Vierkantrohr","Punkt mocowania dla profilu zamkn","POINT D'ANCRAG POUR FIXATION DU TUBE ","Bevestigingspunt voor kokers","Nelikantoru kinnituskoht","riiputuspiste holkille","точки крепления торсионной системы"]
[{"$nulls":32},{"$f":"VLOOKUP(AH71,AH71:AR163,$AE$1,FALSE)","v":"1.kinnituskoht"},"Kotvící bod č. 1","1 st hanging point","1. Aufhängepunkt","Punkt mocowania nr 1","POINT D'ANCRAGE 1 SUSPENTE","1e ophangpunt","1.kinnituskoht","1. ripustuspiste","1 точка крепления горизонтальных направляющих"]
[{"$nulls":32},{"$f":"VLOOKUP(AH72,AH72:AR164,$AE$1,FALSE)","v":"2.kinnituskoht"},"Kotvící bod č. 2","2 nd hanging point","2. Aufhängepunkt","Punkt mocowania nr 2","POINT D'ANCRAGE 2 SUSPENTE","2e ophangpunt","2.kinnituskoht","2. ripustuspiste","2 точка крепления горизонтальных направляющих"]
[{"$nulls":32},{"$f":"VLOOKUP(AH73,AH73:AR165,$AE$1,FALSE)","v":"3. kinnituskohta"},"Kotvící bod č. 3","3 rd hanging point","3. Aufhängepunkt","Punkt mocowania nr 3","POINT D'ANCRAGE 3 SUSPENTE","3e ophangpunt","3. kinnituskohta","3. ripustuspiste","3 точка крепления горизонтальных направляющих"]
[{"$nulls":32},{"$f":"VLOOKUP(AH74,AH74:AR165,$AE$1,FALSE)","v":"Vaba ruum ülalpool paigalduspinda"},"Volný prostor nad překladem","Free room above mounting surface","Freiplatz auf der Mountageplatz","Wolny przestrzeń nad nadproźem","Espace au-dessus de la surface de montage","Ruimte boven montagevlak","Vaba ruum ülalpool paigalduspinda","Vapaa tila asennuspisten kohdalla","технологический зазор"]
[{"$nulls":32},"Käsitsi avatav","Ruční ovládání","Manually operated","Handbedienung","Sterowanie ręczne","PORTE MANUELLE","Handbediend","Käsitsi avatav","Käsikäyttöinen","ручное управление"]
[{"$nulls":32},"Mõlemal pool","Obě strany","Both sided","Beide Seiten","Obie strony","LES 2 COTES","Beide zijden","Mõlemal pool","\nKaksipuoleinen","обе стороны"]
[{"$nulls":32},"Elektriliselt või taliga avatav","Ovládání elektricky nebo řetězovým převodem","Electrical or hauling chain operated","Elektrisch- oder Haspelkettenbedient","Sterowanie elektr. lub za pom. przekł. łańc.","PORTE MOTORISEE OU AVEC TREUIL A CHAINE","Elektrisch- of handketting bediend","Elektriliselt või taliga avatav","Sähkö- tai ketjukäytöinen","электрическое управление или с помощью цепи"]
[{"$nulls":32},"Mootori või tali pool","Motor nebo řetěz. př.","Motor or chain side","Motor-oder Kettenseite","Silnik lub przekł. łańc.","ECOINCON LIBRE A COTE DE MOTEUR","Motor- of kettingzijde","Mootori või tali pool","Mootorin tai ketjun puolinen","сторона цепи или мотора"]
[{"$nulls":32},"Sügavus","Hloubka vedení","Back room","Einbautiefe","Głębokość prowadzenia","REFOULEMENT HORS-TOUT","Inbouwdiepte","Sügavus","Tila takana","монтажная глубина"]
[{"$nulls":32},"Kinnituskoht, kui ","Kotvící bod, když je","Hanging point if","Aufhängepunkte, wenn","Punkty mocowania, jeżeli","POINT D'ANCRAGE DES SUSPENTES, SI","Ophangpunt, als","Kinnituskoht, kui ","Ripustuspiste jos","точки крепления горизонтальных направляющих, если"]
[{"$nulls":32},"Kinntuskoht","Kotvící bod","Hanging point","Aufhängepunkte","Punkty mocowania","POINT D'ANCRAGE DES SUSPENTES","Ophangpunt","Kinntuskoht","Ripustuspiste","точка крепления"]
[{"$nulls":32},"Vaba ruum sillusest  laeni","Volný prostor nad překladem","Free room above lintel","Freiraum über Sturz","Wolna przestrzeń nad nadprożem (min.)","RETOMBEE DE LINTEAU DISPONIBLE","Vrije ruimte boven latei","Vaba ruum sillusest  laeni","Tila oviaukon päällä","свободное пространство над проемом"]
[{"$nulls":32},"Kesktelg","Osa hřídele nad překladem","Height of shaft above lintel","Mitte Achse zum Sturz","Oś wału nad nadprożem","POSITIONNEMENT AXE DE l'ARBRE DE LINTEAU","Center as boven latei","Kesktelg","Akseli ovipalkkin päällä","центральная ось вала"]
[]
[]
[{"$nulls":32},{"$f":"VLOOKUP(AH86,AH86:AR177,$AE$1,FALSE)","v":"Joonestatud:"},"Sestavil:","Designed by:","Aufgestellt:","Wykonał:","DESSINE PAR:","Getekend door:","Joonestatud:","\nSuunnitellut:","спроектировано:"]
[{"$nulls":32},"Kontrollitud:","Upravil:","Checked by","Bereinigt:","Skorygował:","MODIFIE PAR:","Gecontroleerd door:","Kontrollitud:","Tarkistanut","проверил:"]
[{"$nulls":32},"Kinnitatud:","Schváleno - datum:","Approved by - date:","Bereinigt am:","Skorygowano dnia:","MODIFIE LE (DATE):","Goedgekeurd datum:","Kinnitatud:","\nHyväksytty - päivämäärä:","одобрил-дата:"]
[{"$nulls":32},"Faili nimi:","Název souboru:","File name:","Dateiname:","Nazwa pliku:","TITRE:","Bestandsnaam","Faili nimi:","\nTiedoston nimi:","навание файла:"]
[{"$nulls":32},"Kuupäev:","Datum:","Date:","Datum:","Data:","DATE:","Datum:","Kuupäev:","Päivämäärä:","дата:"]
[{"$nulls":32},"Mõõtkava:","Měřítko","Scale:","Massst.:","Podział.:","ECHELLE:","Schaal:","Mõõtkava:","Mittakaava:","шкала:"]
[{"$nulls":32},"Formaat:","Formát: ","Sheet:","Format:","Format:","FORMAT:","Sheet:","Formaat:","Lista:","лист:"]
[{"$nulls":32},"Paigaldusjoonis","STAVEBNÍ PŘIPRAVENOST  ","INSTALLATION DRAWING   ","BAUBEREITSCHAFT","PRZYGOTOWANIE KONSTRUKCYJNE                                           ","PLAN DE RESERVATIONS & ENCOMBREMENTS                                         ","INBOUWTEKENING VOORGE STANDAARD PLAFONDSYSTEEM","Paigaldusjoonis","ASENNUSPIIRUSTUS ","монтажный чертеж"]
[{"$nulls":32},"vedrud ava kohal","pružiny nad překladem ","springs above lintel "," Federn oberhalb des Sturzes ","sprężyny nad nadprożem ","RESSORTS AVANTS DEPORTES DU LINTEAU","verenpakket boven latei","vedrud ava kohal","jouset ovipalkkin päällä","нижнее расположение вала"]
[{"$nulls":32},0,"VERTIKÁLNÍ SYSTÉM","VERTICAL LIFT SYSTEM","VERTIKALER BESCHLAG (VL-T)","PROWADZENIE PIONOWE (VL-T)","LEVEE VERTICALE (VL)","VERTICAAL PLAFONDSYSTEEM"]
[{"$nulls":32},"Kood:","Kód:","Code:","Kode:","Kod:","CODE:","Nr.:","Kood:","Koodi:","код:"]
[{"$nulls":32},"Versioon:","Verze:","Version:","Version:","Wersja:","VERSION:","Versie:","Versioon:","Versio:","версия:"]
[{"$nulls":32},"Mitte vajalik","NENÍ POŽADOVÁNO","NOT REQUIRED","NICHT ERFORDELICH","Nie jest wymagane","Pas nécessaire","NIET BENODIGD","Mitte vajalik","EI VAADITTU","НЕ ТРЕБУЕТСЯ"]
[]
[{"$nulls":32},{"$f":"VLOOKUP(AH100,AH100:AR191,$AE$1,FALSE)","v":"Palun täida värvilised väljad!"},"Prosím, vyplňte pole, která jsou označena barevně!","Please, fill in the fields that are marked in color!","Fülen Sie bitte markierte Felder!","Prosimy o wypełnienie pól oznaczonych kolorem!","S'il vous plaît remplissez les champs qui sont marqués en couleur!","Vul a.u.b. de gemarkeerde velden in!","Palun täida värvilised väljad!","\nTäytä kentät, jotka on merkitty värillä!","пожалуйста, заполните поля обозначенные цветом!"]
[]
[{"$nulls":32},{"$f":"VLOOKUP(AH102,AH102:AR193,$AE$1,FALSE)","v":"Avamine"},"Ovládání","Operated","Bedienung","Sterowanie","PORTE","Bediening","Avamine","Ohjattu","Тип управления"]
[{"$nulls":32},{"$f":"VLOOKUP(AH103,AH103:AR194,$AE$1,FALSE)","v":"käsitsi"},"ručně","manually","hand","ręcznie wykonany","MANUELLE","hand","käsitsi","manuaalisesti","вручную"]
[{"$nulls":32},{"$f":"VLOOKUP(AH104,AH104:AR195,$AE$1,FALSE)","v":"elektriliselt"},"elektricky","electrical ","elektrisch","elektrycznie","MOTORISEE","elektrisch","elektriliselt","sähköisesti","электрическое управление или с помощью цепи"]
[{"$nulls":32},{"$f":"VLOOKUP(AH105,AH105:AR196,$AE$1,FALSE)","v":"taliga - vasakule"},"řetězovým převodem vlevo","hauling chain operated - left","Haspelkette - links","Łańcuch napędu -  lewy","TREUIL A CHAINE - gauche","handketting - links","taliga - vasakule","ketjukäyttöinen - vasen","цепной привод -  левый\n"]
[{"$nulls":32},"taliga - paremale","Řetězovým převodem vpravo","hauling chain operated - right","Haspelkette - rechts","Łańcuch napędu -  prawy","TREUIL A CHAINE - droite","handketting - rechts","taliga - paremale","ketjukäyttöinen - oikea","цепной привод -  правая"]
[{"$nulls":32},{"$f":"VLOOKUP(AH107,AH107:AR198,$AE$1,FALSE)","v":"mootori asukohta"},"Umístění motoru","Position of motor","Antriebsposition","Pozycja sylnika","LA POSITION MOTEUR","Positie van de motor","mootori asukohta","Mootorin asema","расположение мотора"]
[{"$nulls":32},{"$f":"VLOOKUP(AH108,AH108:AR199,$AE$1,FALSE)","v":"elektrimootor vasakul"},"Elektricky - motor vlevo","electric motor on the left","Antrieb - links","silnik elektryczny po lewej stronie","moteur électrique à gauche","elektromotor links","elektrimootor vasakul","sähkömoottori oikealla","электродвигатель слева"]
[{"$nulls":32},"elektrimootor paremal","Elektricky - motor vpravo","electric motor on the right","Antrieb - rechts","silnik elektryczny po prawej stronie","moteur électrique à droite","elektromotor rechts","elektrimootor paremal","sähkömoottori vasemmalla","электродвигатель справа"]
[]
[{"$nulls":32},{"$f":"VLOOKUP(AH111,AH111:AR202,$AE$1,FALSE)","v":0},"Variantní  montáž pružin","Additional spring mounting","Extra Aufhängung Federpaket","Wariant montażu sprężyn","MONTAGE DES RESSORTS","Extra veer monteren"]
[{"$nulls":32},{"$f":"VLOOKUP(AH112,AH112:AR203,$AE$1,FALSE)","v":0},"když B<2000 - STP-1 pružina (SPR-1)","if W< 2000 - INSD-1 spring (SPR-1)","Wenn W< 2000 - BAUS-1 Feder (SPR-1)","jeżeli W< 2000-STP-1 sprężyna (SPR-1)","SI W< 2000 STP-1RESSORT (SPR-1)","als B<2000 - INSD-1 veer (SPR-1)"]
[{"$nulls":32},{"$f":"VLOOKUP(AH113,AH113:AR204,$AE$1,FALSE)","v":0},"když 2000>=W<6000 - STP-2 pružiny (SPR-2)","if 2000>=W<6000 - INSD-2 springs (SPR-2)","Wenn 2000>=W<6000- BAUS-2 Federn (SPR-2)","jeżeli 2000>=W<6000-STP-2 sprężyna (SPR-2)","SI 2000>=W<6000 STP-2RESSORTS (SPR-2)","als 2000>=B<6000 - INSD-2 veren (SPR-2)"]
[{"$nulls":32},{"$f":"VLOOKUP(AH114,AH114:AR205,$AE$1,FALSE)","v":0},"když W>=6000 = STP-4 pružiny (SPR-4)","if W>=6000 - INSD-4 springs (SPR-4)","Wenn W>=6000 - BAUS-4 Federn (SPR-4)","jeżeli W>=6000-STP-4 sprężyna (SPR-4)","SI W> 6000 STP-4RESSORTS (SPR-4)","als B>=6000 - INSD-4 veren (SPR-4)"]
[]
[{"$nulls":32},{"$f":"VLOOKUP(AH116,AH116:AR207,$AE$1,FALSE)","v":"Mootori kinnituspind"},"Montážní plocha pro motor","Mounting surface for motor","Montagefläche für Antriebe","powierzchnia montażowa dla silnika","Surface de montage pour le moteur","Montagevlak voor motor","Mootori kinnituspind","Mootorin asenuspinta","Монтажная поверхность для мотора"]
[]
[{"$nulls":32},{"$f":"VLOOKUP(AH118,AH118:AR209,$AE$1,FALSE)","v":"Paneelitüüp"},"Typ panelu","Type of panel","Paneel-Typ","Rodzaj panelu","Type de panneau","Panel type","Paneelitüüp","lamellin tyypi","Тип панели"]
[{"$nulls":32},{"$f":"VLOOKUP(AH119,AH119:AR210,$AE$1,FALSE)","v":"40 mm"},"40mm","40mm","40mm","40mm","40mm","40mm","40 mm","40mm","40мм"]
[{"$nulls":32},{"$f":"VLOOKUP(AH120,AH120:AR211,$AE$1,FALSE)","v":"80 mm"},"80mm","80mm","80mm","80mm","80mm","80mm","80 mm","80mm","80мм"]
[]
[{"$nulls":32},{"$f":"VLOOKUP(AH122,AH122:AR213,$AE$1,FALSE)","v":"1 1/4\" võlli puhul, sillus on HL+360 ja võlli kesktelg on HL+210 MM"},"Když 1 1/4\" hřídel, tak překlad automaticky HL+360 a osa hřídele HL+210 mm","When 1 1/4 \"shaft, lintel is HL+360 and axis of shaft is HL + 210 mm","Wenn 1 1/4 \"Schaft, Sturz ist HL + 360 und Achse der Welle ist HL + 210 mm","Po 1 1/4 \"Wał, nadproża jest HL + 360 i oś wału jest HL + 210 mm","Lorsque 1 1/4 \"arbre, linteau est HL + 360 et l'axe ou l'arbre est HL + 210 mm","Wanneer 1 1/4 \"schacht, latei is HL + 360 en as van de as is HL + 210 mm","1 1/4\" võlli puhul, sillus on HL+360 ja võlli kesktelg on HL+210 MM","Kun 1 1/4 \"akseli, ovipalkki on HL + 360 ja akselin keskiviiva on HL + 210 mm","при использовании вала 1,25 дюйма перемычка (F) = HL+360 и ось вала (A) = HL+210мм"]
[]
[{"$nulls":32},{"$f":"VLOOKUP(AH124,AH124:AR215,$AE$1,FALSE)","v":"Siinide tüüp"},"Typ vedení","Type of rails","type Laufschienen","Typ moznazowych","Type des rails","Type looprails","Siinide tüüp","Kiskojen tyyppi","Тип направляющих"]
[{"$nulls":32},{"$f":"VLOOKUP(AH125,AH125:AR216,$AE$1,FALSE)","v":"2\""},"2\"","2\"","2\"","2\"","2\"","2\"","2\"","2\"","2\""]
[{"$nulls":32},{"$f":"VLOOKUP(AH126,AH126:AR217,$AE$1,FALSE)","v":"3\""},"3\"","3\"","3\"","3\"","3\"","3\"","3\"","3\"","3\""]
[]
[{"$nulls":32},{"$f":"VLOOKUP(AH128,AH128:AR219,$AE$1,FALSE)","v":"Vinkel"},"Úhel","Angle","Winkel","Kąt","Angle","Hoek","Vinkel","Kulma","Угол"]
[]
[{"$nulls":32},"3°-25°"]
[{"$nulls":32},"26°-30°"]
[{"$nulls":32},{"$f":"VLOOKUP(AH132,AH132:AR227,$AE$1,FALSE)","v":"Mootori pool "},"Strana motoru","Motor side ","Antriebseite ","Strona silnika ","Côté moteur ","Motorzijde ","Mootori pool ","Moottorin puoli ","Сторона двигателя "]
[{"$nulls":32},"Teine pool ","Druhá strana","Other side","Andere Seite ","Druga strona ","Autre côté ","Andere kant ","Teine pool ","Muu puoli ","Другая сторона "]
[{"$nulls":32},{"$f":"VLOOKUP(AH134,AH134:AR228,$AE$1,FALSE)","v":"Pakkumine/tellimus:"},"Nabídka/Objednávka:","Offer/Order:","Angebot/Bestellung:","Oferta/Zamówienie:","Offre/Commande:","Offerte/Order:","Pakkumine/tellimus:","Tarjous/Tilaus:","Предложение/заказ:"]
[{"$nulls":32},"Ametikohad:","Pozice:","Position:","Position:","Pozycje:","Positions:","Positie:","Ametikohad:","Työpaikat:","Позиции:"]
[{"$nulls":32},{"$f":"VLOOKUP(AH136,AH136:AR227,$AE$1,FALSE)","v":"80x40x2 galvaniseeritud toru sisaldub tarnes. Toru kinnitatakse lakke minimaalselt kolmes kohas (2 kinnituskoha ustel alla 10m2)"},"Jekl 80x40x2 (pozink) je součástí dodávky. Musí se pevně přikotvit ke stropu minimálně na 3 místech (u vrat do 10m2 stačí na 2 místech)","Galvanized sleeve 80x40x2 is included. Sleeve must be attached to ceiling at minimum 3 points (2 points for door under 10 m2).","Rechteckigerohre 80x40x2 (verzinkt) ist ein Lieferungsbestandteil. Er muss fest an die Decke in drei Punkten befestigt werden, (beim Torblatt bis 10 m2 reichen 2 Punkte).","Profil zamknięty 80x40x2 (ocynkowany) stanowi część składową dostawy. Musi zostać mocno zamocowany do stropu. Minimalnie w trzech miejscach, (w wypadku bramy do 10 m2 wystarczy w dwóch miejscach)","Le tube de 80x40x2 en acier galvanisé est compris dans la livraison. II doi bien entre fixé au plafond par au minimum 3 points de fixation (pour les portes jusqu a d 10 m2, 2 point the fixation suffisent). ",null,"80x40x2 galvaniseeritud toru sisaldub tarnes. Toru kinnitatakse lakke minimaalselt kolmes kohas (2 kinnituskoha ustel alla 10m2)","Galvanoitu holkki 80x40x2 sisältyy. Holkki on kiinnitetty kattoon vähintään 3sta pistestä (2 pistettä ovella alle 10 m2).","Оцинкованный профиль 80х40х2 мм (в комплекте) должен быть закреплен на потолке минимум в трех точках (2 точки для ворот менее 10м²)"]
[{"$nulls":32},"puhaskõrgust saab vähendada ukselehe siseküljele paigaldatud tarvitute abil (käepide, tugevdustala, eriti madal künnis, jne)","průjezdná výška může být snížena příslušenstvím nainstalovaným na vnitřní straně vratového křídla (madlo, výztuha, extra nízký práh apod.)","clear height could be decreased by accessories installed on inner side of door leaf (handgrip, reinforcing strut, extra low threshold etc.)","Durchfahrtshöhe kann bei der Montage der Zubehörteile an die Innenseite des Torflügels reduziert werden (betrifft Handgriff, Versteifungen, besonders niedrige Schwelle etc.)","wysokość prześwitu może zostać zmniejszona dzięki akcesoriom zainstalowanym po wewnętrznej stronie skrzydła drzwi (uchwyt, wzmocnienie, Bardzo niski próg itp.)","L´ouverture de passage peut être réduite par les accessoires installés en intérieur du vantail de porte (les poignées, les renforts, Bardzo niski próg, etc.)","De hoogte van de vrije ruimte kan worden verlaagd door accessoires die aan de binnenkant van het deurblad zijn gemonteerd (handgreep, verstevigingsprofielen, extra lage drempel, enz.)","puhaskõrgust saab vähendada ukselehe siseküljele paigaldatud tarvitute abil (käepide, tugevdustala, eriti madal künnis, jne)","Vapaan kulkuaukon korkeus voi väheentyä ovilehteen kinnitetyn lisävarustuksen takia (jäykistin, käsikahva, erittäin matala kynnysarvo, jne.)"]

{"sheet":"SW-R FLHI","index":1,"n_rows":48,"n_cols":5,"rows_kept":48,"merged":[[6,0,9,0],[6,1,10,1],[14,0,17,0],[39,2,40,8],[41,2,42,3],[41,4,42,6],[41,7,48,8],[43,2,44,3],[43,4,44,6],[45,2,46,3],[45,4,46,6],[47,2,48,3],[47,4,48,6]]}
{"$rows_empty":39}
[null,null,{"$f":"general!W2","v":"Katusekallet järgiv madal tõste (FLL-I)"}]
[]
[null,null,{"$f":"general!AG107","v":"mootori asukohta"},null,{"$f":"general!AG109","v":"elektrimootor paremal"}]
[]
[null,null,{"$f":"general!R60","v":"Joonestatud:"}]
[]
[null,null,{"$f":"general!T60","v":"Kontrollitud:"}]
[]
[null,null,{"$f":"general!Z60","v":"Kuupäev:"}]

{"sheet":"SW-L FLHI","index":2,"n_rows":48,"n_cols":5,"rows_kept":48,"merged":[[4,8,7,8],[6,7,10,7],[14,8,17,8],[39,2,40,8],[41,2,42,3],[41,4,42,6],[41,7,48,8],[43,2,44,3],[43,4,44,6],[45,2,46,3],[45,4,46,6],[47,2,48,3],[47,4,48,6]]}
{"$rows_empty":39}
[null,null,{"$f":"general!W2","v":"Katusekallet järgiv madal tõste (FLL-I)"}]
[]
[null,null,{"$f":"general!AG107","v":"mootori asukohta"},null,{"$f":"general!AG108","v":"elektrimootor vasakul"}]
[]
[null,null,{"$f":"general!R60","v":"Joonestatud:"}]
[]
[null,null,{"$f":"general!T60","v":"Kontrollitud:"}]
[]
[null,null,{"$f":"general!Z60","v":"Kuupäev:"}]

{"sheet":"Manually_operated","index":3,"n_rows":48,"n_cols":5,"rows_kept":48,"merged":[[4,0,6,0],[14,0,17,0],[39,2,40,8],[41,2,42,3],[41,4,42,6],[41,7,48,8],[43,2,44,3],[43,4,44,6],[45,2,46,3],[45,4,46,6],[47,2,48,3],[47,4,48,6]]}
{"$rows_empty":39}
[null,null,{"$f":"general!W2","v":"Katusekallet järgiv madal tõste (FLL-I)"}]
[]
[null,null,{"$f":"general!AG107","v":"mootori asukohta"},null,{"$f":"general!AG102","v":"Avamine"}]
[]
[null,null,{"$f":"general!R60","v":"Joonestatud:"}]
[]
[null,null,{"$f":"general!T60","v":"Kontrollitud:"}]
[]
[null,null,{"$f":"general!Z60","v":"Kuupäev:"}]

{"sheet":"Obrázky","index":4,"n_rows":175,"n_cols":26,"rows_kept":175,"merged":[[19,3,54,3],[19,4,54,11],[60,3,95,3],[60,4,95,11],[98,3,133,3],[98,4,133,11],[136,3,171,3],[136,4,171,11],[174,3,209,3],[174,4,209,11]]}
[]
[]
[]
[]
[]
[{"$nulls":24},"Pomocné výpočty"]
[]
[]
[]
[]
[]
[{"$nulls":24},"W=",{"$f":"general!$K$3","v":0}]
[{"$nulls":24},"L+ W + R = ",{"$f":"IF(OR(general!K5=\"\",general!K7=\"\"),\"L + W + R \", Y13 & Z12+Z16+Z17)","v":"L + W + R "}]
[]
[]
[{"$nulls":24},"Leva strana dole",{"$f":"IF(general!K7=\"\",\"\",IF(general!K7=general!AG102,180,IF(OR(general!K7=general!AG105,general!K7=general!AG108),450,180)))","v":""}]
[{"$nulls":24},"Pravo dole",{"$f":"IF(general!K7=\"\",\"\",IF(general!K7=general!AG102,180,IF(OR(general!K7=general!AG106,general!K7=general!AG109),450,180)))","v":""}]
[{"$nulls":24},"40/80mm",{"$f":"IF(general!$K$9=general!$AG$120,290,250)","v":250}]
[{"$nulls":24},"X",{"$f":"IF(general!$K$5=\"\",\"X\", \"X = \" & general!$K$5)","v":"X"}]
[{"$nulls":3},{"$f":"general!AG109","v":"elektrimootor paremal"},{"$nulls":20},"Y",{"$f":"IF(OR(general!$K$5=\"\",general!K5=\"\",general!K7=\"\"),\"Y\",IF(general!$L$57<=3000,\"Y = 0\",IF(AND(general!$L$57>3000,general!$L$57<=4500),\"Y = \"&general!L62,\"Y = \"&general!$L$65)))","v":"Y"}]
[{"$nulls":24},"Y2",{"$f":"IF(OR(general!K5=\"\",general!K7=\"\"),\"Y2\",IF(general!$L$57>4500,\"Y2 = \"&general!$L$66,\"Y2 = 0\"))","v":"Y2"}]
[{"$nulls":24},"S",{"$f":"IF(general!K5=\"\",\"S\",\"S = \" & general!K5+1020)","v":"S"}]
{"$rows_empty":38}
[{"$nulls":3},{"$f":"general!AG108","v":"elektrimootor vasakul"}]
{"$rows_empty":37}
[{"$nulls":3},{"$f":"general!AG103","v":"käsitsi"}]
{"$rows_empty":37}
[{"$nulls":3},"řetězovým převodem vlevo"]
{"$rows_empty":37}
[{"$nulls":3},"řetězovým převodem vpravo"]